[Event "*** Titled Tuesday 3|2 Blitz (Late)"]
[Site "Chess.com"]
[Date "2016.12.06"]
[Round "1"]
[White "Rumpel-VK"]
[Black "visa"]
[Result "1-0"]
[WhiteElo "2462"]
[BlackElo "2151"]
[TimeControl "180+2"]
[EndTime "17:09:26 PST"]
[Termination "Rumpel-VK won on time"]

1. e4 {[%clk 0:02:50.1]} 1... d6 {[%clk 0:02:59.8]} 2. d4 {[%clk 0:02:50.2]}
2... Nf6 {[%clk 0:02:59.9]} 3. Nc3 {[%clk 0:02:45.2]} 3... e5 {[%clk 0:02:58]}
4. Nf3 {[%clk 0:02:41.9]} 4... Nbd7 {[%clk 0:02:58.2]} 5. Bc4 {[%clk 0:02:41.8]}
5... Be7 {[%clk 0:02:58.7]} 6. a4 {[%clk 0:02:38.3]} 6... c6 {[%clk 0:02:56.5]}
7. O-O {[%clk 0:02:38.3]} 7... Qc7 {[%clk 0:02:56.2]} 8. Re1 {[%clk 0:02:37.2]}
8... a5 {[%clk 0:02:57]} 9. Nh4 {[%clk 0:02:31.2]} 9... g6 {[%clk 0:02:32.6]}
10. Ba2 {[%clk 0:02:06.2]} 10... h6 {[%clk 0:02:28.6]} 11. dxe5 {[%clk
0:01:55.8]} 11... dxe5 {[%clk 0:02:21.9]} 12. Be3 {[%clk 0:01:53.3]} 12... Nh7
{[%clk 0:02:13.3]} 13. Nf3 {[%clk 0:01:41.1]} 13... g5 {[%clk 0:02:13.2]} 14.
Nd2 {[%clk 0:01:32.5]} 14... Ndf8 {[%clk 0:02:10.9]} 15. Nf1 {[%clk 0:01:30.9]}
15... Ng6 {[%clk 0:02:05.9]} 16. Ng3 {[%clk 0:01:31.1]} 16... Nf4 {[%clk
0:02:05.6]} 17. Nf5 {[%clk 0:01:27.8]} 17... Bxf5 {[%clk 0:02:06.4]} 18. exf5
{[%clk 0:01:28.2]} 18... Nf6 {[%clk 0:02:04.5]} 19. Bxf4 {[%clk 0:01:21.3]}
19... gxf4 {[%clk 0:01:54.5]} 20. Qe2 {[%clk 0:01:22.7]} 20... Bd6 {[%clk
0:01:40.9]} 21. Qc4 {[%clk 0:00:59.7]} 21... Rh7 {[%clk 0:01:21.2]} 22. Qxf4
{[%clk 0:00:47.9]} 22... Kf8 {[%clk 0:01:16.2]} 23. Qh4 {[%clk 0:00:47.2]} 23...
Be7 {[%clk 0:01:12.4]} 24. Ne4 {[%clk 0:00:48]} 24... Nxe4 {[%clk 0:00:54.8]}
25. Qxe4 {[%clk 0:00:48.1]} 25... Bf6 {[%clk 0:00:50.7]} 26. Rad1 {[%clk
0:00:42.9]} 26... Rg7 {[%clk 0:00:50.7]} 27. Rd3 {[%clk 0:00:42.9]} 27... Rd8
{[%clk 0:00:48.7]} 28. Rxd8+ {[%clk 0:00:41.1]} 28... Qxd8 {[%clk 0:00:47.9]}
29. Bc4 {[%clk 0:00:40]} 29... h5 {[%clk 0:00:42.5]} 30. Be2 {[%clk 0:00:35.2]}
30... h4 {[%clk 0:00:32.4]} 31. Rd1 {[%clk 0:00:35.5]} 31... Qb6 {[%clk
0:00:29.9]} 32. b3 {[%clk 0:00:25.6]} 32... Qb4 {[%clk 0:00:27.7]} 33. Qxb4+
{[%clk 0:00:23]} 33... axb4 {[%clk 0:00:28.9]} 34. g4 {[%clk 0:00:20.5]} 34...
hxg3 {[%clk 0:00:29]} 35. hxg3 {[%clk 0:00:21.2]} 35... Ke7 {[%clk 0:00:28.3]}
36. a5 {[%clk 0:00:20.9]} 36... Bg5 {[%clk 0:00:28.3]} 37. a6 {[%clk 0:00:20.3]}
37... bxa6 {[%clk 0:00:28.6]} 38. Ra1 {[%clk 0:00:21]} 38... Rg8 {[%clk
0:00:25.7]} 39. Rxa6 {[%clk 0:00:21.4]} 39... Rc8 {[%clk 0:00:26.3]} 40. Bf3
{[%clk 0:00:21.8]} 40... c5 {[%clk 0:00:24]} 41. Bd5 {[%clk 0:00:22.5]} 41... f6
{[%clk 0:00:23.8]} 42. Re6+ {[%clk 0:00:21.5]} 42... Kd7 {[%clk 0:00:24.9]} 43.
Kg2 {[%clk 0:00:22.1]} 43... Rb8 {[%clk 0:00:21.7]} 44. Rc6 {[%clk 0:00:21.6]}
44... Rb5 {[%clk 0:00:21.6]} 45. Ra6 {[%clk 0:00:21.7]} 45... Kc7 {[%clk
0:00:18.3]} 46. f4 {[%clk 0:00:21.5]} 46... exf4 {[%clk 0:00:19.1]} 47. gxf4
{[%clk 0:00:22.5]} 47... Bxf4 {[%clk 0:00:20.4]} 48. Rxf6 {[%clk 0:00:23.2]}
48... Be5 {[%clk 0:00:21.6]} 49. Rc6+ {[%clk 0:00:23.3]} 49... Kd7 {[%clk
0:00:21.4]} 50. Re6 {[%clk 0:00:24.2]} 50... Bd4 {[%clk 0:00:22.1]} 51. Bc6+
{[%clk 0:00:24.5]} 51... Kc7 {[%clk 0:00:19.2]} 52. Bxb5 {[%clk 0:00:24.9]} 1-0

[Event "*** Titled Tuesday 3|2 Blitz (Late)"]
[Site "Chess.com"]
[Date "2016.12.06"]
[Round "1"]
[White "Pierrebl"]
[Black "Alliswell998"]
[Result "1-0"]
[WhiteElo "2452"]
[BlackElo "2116"]
[TimeControl "180+2"]
[EndTime "17:09:36 PST"]
[Termination "Pierrebl won on time"]

1. e4 {[%clk 0:03:00.4]} 1... c5 {[%clk 0:02:56.1]} 2. Nf3 {[%clk 0:03:01.3]}
2... d6 {[%clk 0:02:50.7]} 3. d4 {[%clk 0:02:58]} 3... cxd4 {[%clk 0:02:51.2]}
4. Nxd4 {[%clk 0:02:59.9]} 4... Nf6 {[%clk 0:02:46.7]} 5. Nc3 {[%clk 0:03:01.2]}
5... a6 {[%clk 0:02:47.3]} 6. h3 {[%clk 0:03:01.1]} 6... e5 {[%clk 0:02:48]} 7.
Nde2 {[%clk 0:03:01.7]} 7... h5 {[%clk 0:02:45.6]} 8. g3 {[%clk 0:03:02]} 8...
Be7 {[%clk 0:02:45.7]} 9. Bg2 {[%clk 0:03:03.4]} 9... Be6 {[%clk 0:02:37.8]} 10.
O-O {[%clk 0:03:01.1]} 10... Nc6 {[%clk 0:02:32.8]} 11. Bg5 {[%clk 0:03:00]}
11... Rc8 {[%clk 0:02:31.3]} 12. h4 {[%clk 0:02:52.3]} 12... b5 {[%clk
0:02:29.4]} 13. Rc1 {[%clk 0:02:47]} 13... b4 {[%clk 0:02:27]} 14. Bxf6 {[%clk
0:02:47.7]} 14... Bxf6 {[%clk 0:02:22.1]} 15. Nd5 {[%clk 0:02:48.9]} 15... Bxd5
{[%clk 0:02:22.4]} 16. Qxd5 {[%clk 0:02:49.9]} 16... Ne7 {[%clk 0:02:19.7]} 17.
Qd3 {[%clk 0:02:47.3]} 17... Qb6 {[%clk 0:02:16.4]} 18. Rfd1 {[%clk 0:02:37.8]}
18... Rc6 {[%clk 0:02:13.8]} 19. c3 {[%clk 0:02:34.1]} 19... bxc3 {[%clk
0:02:09.9]} 20. Rxc3 {[%clk 0:02:34.9]} 20... Rxc3 {[%clk 0:01:58.1]} 21. Nxc3
{[%clk 0:02:34.7]} 21... O-O {[%clk 0:01:52.4]} 22. b3 {[%clk 0:02:20.2]} 22...
Qd4 {[%clk 0:01:41.2]} 23. Qf3 {[%clk 0:02:01.2]} 23... Qb4 {[%clk 0:01:37.9]}
24. Bf1 {[%clk 0:01:52.5]} 24... Rc8 {[%clk 0:01:35.1]} 25. Bc4 {[%clk 0:01:53]}
25... a5 {[%clk 0:01:20.5]} 26. Rd3 {[%clk 0:01:41.4]} 26... Qa3 {[%clk
0:01:05.9]} 27. Qxh5 {[%clk 0:01:36.9]} 27... g6 {[%clk 0:01:03.6]} 28. Qf3
{[%clk 0:01:36.7]} 28... Kg7 {[%clk 0:01:03.2]} 29. h5 {[%clk 0:01:33.9]} 29...
gxh5 {[%clk 0:00:54.6]} 30. Qxh5 {[%clk 0:01:33.7]} 30... Ng6 {[%clk 0:00:54.4]}
31. Kg2 {[%clk 0:01:12.8]} 31... Rh8 {[%clk 0:00:49.8]} 32. Qg4 {[%clk
0:01:08.2]} 32... Qc1 {[%clk 0:00:44.2]} 33. Nd1 {[%clk 0:00:49.8]} 33... Qh6
{[%clk 0:00:41.9]} 34. Kf1 {[%clk 0:00:47.9]} 34... Qh1+ {[%clk 0:00:35.2]} 35.
Ke2 {[%clk 0:00:48.7]} 35... Rh2 {[%clk 0:00:33.8]} 36. Qf3 {[%clk 0:00:42]}
36... Qg1 {[%clk 0:00:27.3]} 37. Rxd6 {[%clk 0:00:41.6]} 37... Nf4+ {[%clk
0:00:22]} 38. gxf4 {[%clk 0:00:40.6]} 38... Rh1 {[%clk 0:00:14]} 39. Qg3+ {[%clk
0:00:22]} 39... Qxg3 {[%clk 0:00:08.4]} 40. fxg3 {[%clk 0:00:23.9]} 40... Rh2+
{[%clk 0:00:09.5]} 41. Kf3 {[%clk 0:00:24.5]} 41... Rxa2 {[%clk 0:00:11.4]} 42.
Rd7 {[%clk 0:00:25]} 42... exf4 {[%clk 0:00:10.5]} 43. gxf4 {[%clk 0:00:23.6]}
43... Ra1 {[%clk 0:00:10.1]} 44. Ne3 {[%clk 0:00:22.1]} 44... a4 {[%clk
0:00:10.6]} 45. Nf5+ {[%clk 0:00:22.6]} 45... Kg6 {[%clk 0:00:11.2]} 46. Bxf7+
{[%clk 0:00:23.5]} 46... Kh7 {[%clk 0:00:11]} 47. Bh5+ {[%clk 0:00:24.3]} 47...
Kh8 {[%clk 0:00:11.7]} 48. bxa4 {[%clk 0:00:23.6]} 48... Rxa4 {[%clk 0:00:13.6]}
49. e5 {[%clk 0:00:23.3]} 49... Ra3+ {[%clk 0:00:12.8]} 50. Kg4 {[%clk
0:00:23.9]} 50... Bg7 {[%clk 0:00:12.4]} 51. Nxg7 {[%clk 0:00:23.9]} 51... Ra8
{[%clk 0:00:10.6]} 52. Nf5 {[%clk 0:00:22.4]} 1-0

[Event "*** Titled Tuesday 3|2 Blitz (Late)"]
[Site "Chess.com"]
[Date "2016.12.06"]
[Round "1"]
[White "Kawhi_Leonard2"]
[Black "AlexanderL"]
[Result "0-1"]
[WhiteElo "2226"]
[BlackElo "2567"]
[TimeControl "180+2"]
[EndTime "17:09:37 PST"]
[Termination "AlexanderL won by checkmate"]

1. e4 {[%clk 0:03:00.5]} 1... e6 {[%clk 0:02:59.7]} 2. d4 {[%clk 0:02:58.4]}
2... d5 {[%clk 0:03:00.6]} 3. Nd2 {[%clk 0:02:58.8]} 3... c5 {[%clk 0:02:58.7]}
4. exd5 {[%clk 0:02:58.9]} 4... Qxd5 {[%clk 0:02:59.2]} 5. Ngf3 {[%clk
0:02:59.5]} 5... cxd4 {[%clk 0:02:59.9]} 6. Bc4 {[%clk 0:02:59.7]} 6... Qd6
{[%clk 0:03:01]} 7. O-O {[%clk 0:03:00]} 7... Nf6 {[%clk 0:03:02.2]} 8. Nb3
{[%clk 0:03:00.2]} 8... Nc6 {[%clk 0:03:03.4]} 9. Nbxd4 {[%clk 0:03:00.4]} 9...
Nxd4 {[%clk 0:03:04.7]} 10. Nxd4 {[%clk 0:03:01]} 10... a6 {[%clk 0:03:06.1]}
11. Re1 {[%clk 0:03:00.3]} 11... Qc7 {[%clk 0:03:07.4]} 12. Bf1 {[%clk
0:03:00.3]} 12... Be7 {[%clk 0:03:06.7]} 13. b3 {[%clk 0:02:15.1]} 13... O-O
{[%clk 0:03:04.5]} 14. Bb2 {[%clk 0:02:16.1]} 14... b5 {[%clk 0:02:50.5]} 15. a4
{[%clk 0:02:10.6]} 15... b4 {[%clk 0:02:51.5]} 16. Rc1 {[%clk 0:02:08.6]} 16...
Nd5 {[%clk 0:02:35.8]} 17. Nf5 {[%clk 0:01:51.8]} 17... Bf6 {[%clk 0:02:36.8]}
18. Bxf6 {[%clk 0:01:50.7]} 18... Nxf6 {[%clk 0:02:37.1]} 19. Ne3 {[%clk
0:01:44.8]} 19... Rd8 {[%clk 0:02:33.7]} 20. Bd3 {[%clk 0:01:37]} 20... Bb7
{[%clk 0:02:19.1]} 21. Qd2 {[%clk 0:01:37.9]} 21... a5 {[%clk 0:02:11.4]} 22.
Qe2 {[%clk 0:01:38.3]} 22... Qf4 {[%clk 0:02:05.7]} 23. c3 {[%clk 0:01:24.4]}
23... bxc3 {[%clk 0:01:55]} 24. Rxc3 {[%clk 0:01:24.6]} 24... Ne4 {[%clk
0:01:44.2]} 25. Bxe4 {[%clk 0:00:51.2]} 25... Qxe4 {[%clk 0:01:44.8]} 26. Rec1
{[%clk 0:00:47.6]} 26... Ba6 {[%clk 0:01:29.1]} 27. Qc2 {[%clk 0:00:37.7]} 27...
Qxc2 {[%clk 0:01:28.7]} 28. R1xc2 {[%clk 0:00:36]} 28... h5 {[%clk 0:01:19.8]}
29. h4 {[%clk 0:00:33.2]} 29... Rd4 {[%clk 0:01:14]} 30. g3 {[%clk 0:00:29.4]}
30... Bb7 {[%clk 0:01:14.8]} 31. f4 {[%clk 0:00:23.5]} 31... Be4 {[%clk
0:01:13.7]} 32. Rc8+ {[%clk 0:00:20.7]} 32... Rxc8 {[%clk 0:01:14.8]} 33. Rxc8+
{[%clk 0:00:22.1]} 33... Kh7 {[%clk 0:01:16.7]} 34. Rc5 {[%clk 0:00:22.3]} 34...
g6 {[%clk 0:01:15.5]} 35. Rxa5 {[%clk 0:00:23.2]} 35... Rd3 {[%clk 0:01:16.9]}
36. Nc4 {[%clk 0:00:21.4]} 36... Rxg3+ {[%clk 0:01:16.7]} 37. Kf2 {[%clk
0:00:22.5]} 37... Rxb3 {[%clk 0:01:16.6]} 38. Nd2 {[%clk 0:00:21]} 38... Rb2
{[%clk 0:01:15.6]} 39. Ke3 {[%clk 0:00:21.2]} 39... Bd5 {[%clk 0:01:16.9]} 40.
Ra7 {[%clk 0:00:21.5]} 40... Kg7 {[%clk 0:01:17.4]} 41. a5 {[%clk 0:00:21.8]}
41... Ra2 {[%clk 0:01:17]} 42. Nb1 {[%clk 0:00:21.1]} 42... Rc2 {[%clk
0:00:39.9]} 43. Kd4 {[%clk 0:00:12.1]} 43... Rc4+ {[%clk 0:00:40]} 44. Ke5
{[%clk 0:00:12.9]} 44... Re4+ {[%clk 0:00:39.9]} 45. Kd6 {[%clk 0:00:14.1]}
45... Rxf4 {[%clk 0:00:41.3]} 46. Nc3 {[%clk 0:00:15.1]} 46... Bf3 {[%clk
0:00:42.1]} 47. a6 {[%clk 0:00:12.4]} 47... Rxh4 {[%clk 0:00:42.2]} 48. Rc7
{[%clk 0:00:10.9]} 48... Rd4+ {[%clk 0:00:35.5]} 49. Ke5 {[%clk 0:00:08.7]}
49... Rd8 {[%clk 0:00:30.2]} 50. a7 {[%clk 0:00:09]} 50... h4 {[%clk 0:00:30]}
51. Kf4 {[%clk 0:00:10.2]} 51... Ba8 {[%clk 0:00:30.8]} 52. Kg4 {[%clk
0:00:06.8]} 52... Rd4+ {[%clk 0:00:31.7]} 53. Kh3 {[%clk 0:00:05.6]} 53... g5
{[%clk 0:00:28.1]} 54. Rc8 {[%clk 0:00:05.2]} 54... Rd3+ {[%clk 0:00:26.5]} 55.
Kg4 {[%clk 0:00:05.8]} 55... Rg3+ {[%clk 0:00:27.3]} 56. Kh5 {[%clk 0:00:04.3]}
56... Bf3# {[%clk 0:00:29.2]} 0-1

[Event "*** Titled Tuesday 3|2 Blitz (Late)"]
[Site "Chess.com"]
[Date "2016.12.06"]
[Round "1"]
[White "spirals5"]
[Black "jcibarra"]
[Result "0-1"]
[WhiteElo "2281"]
[BlackElo "2632"]
[TimeControl "180+2"]
[EndTime "17:10:15 PST"]
[Termination "jcibarra won by resignation"]

1. e4 {[%clk 0:02:59.5]} 1... e5 {[%clk 0:02:56.5]} 2. Nf3 {[%clk 0:02:59.7]}
2... Nc6 {[%clk 0:02:57.2]} 3. Bb5 {[%clk 0:02:59.6]} 3... Nf6 {[%clk
0:02:55.1]} 4. d3 {[%clk 0:02:59.6]} 4... Bc5 {[%clk 0:02:55]} 5. O-O {[%clk
0:02:59.7]} 5... Nd4 {[%clk 0:02:56]} 6. Nxd4 {[%clk 0:02:56.7]} 6... Bxd4
{[%clk 0:02:57.9]} 7. c3 {[%clk 0:02:55.5]} 7... Bb6 {[%clk 0:02:58.8]} 8. Be3
{[%clk 0:02:55.9]} 8... Bxe3 {[%clk 0:02:53.7]} 9. fxe3 {[%clk 0:02:56.2]} 9...
c6 {[%clk 0:02:55.4]} 10. Bc4 {[%clk 0:02:54]} 10... O-O {[%clk 0:02:50.7]} 11.
Bb3 {[%clk 0:02:52.5]} 11... d5 {[%clk 0:02:51.9]} 12. exd5 {[%clk 0:02:52.1]}
12... cxd5 {[%clk 0:02:51.5]} 13. Nd2 {[%clk 0:02:52]} 13... Bg4 {[%clk
0:02:49.5]} 14. Qe1 {[%clk 0:02:52.3]} 14... Bh5 {[%clk 0:02:47.6]} 15. h3
{[%clk 0:02:51.6]} 15... Re8 {[%clk 0:02:45.2]} 16. Qf2 {[%clk 0:02:36.5]} 16...
Qd6 {[%clk 0:02:31.1]} 17. Qg3 {[%clk 0:02:21.2]} 17... Be2 {[%clk 0:02:28.2]}
18. Rf2 {[%clk 0:02:18.1]} 18... Bxd3 {[%clk 0:02:28.9]} 19. Re1 {[%clk
0:02:04.6]} 19... Rad8 {[%clk 0:02:27.8]} 20. Qf3 {[%clk 0:01:50.4]} 20... h6
{[%clk 0:02:19.2]} 21. g4 {[%clk 0:01:50.5]} 21... Re7 {[%clk 0:02:17.8]} 22.
Qg3 {[%clk 0:01:50.1]} 22... b5 {[%clk 0:02:04.3]} 23. a3 {[%clk 0:01:50.2]}
23... a5 {[%clk 0:02:05.1]} 24. h4 {[%clk 0:01:44.7]} 24... e4 {[%clk
0:01:51.1]} 25. Qxd6 {[%clk 0:01:44.7]} 25... Rxd6 {[%clk 0:01:53]} 26. Rg2
{[%clk 0:01:28.8]} 26... Re5 {[%clk 0:01:49.3]} 27. Kh2 {[%clk 0:01:25.4]} 27...
g5 {[%clk 0:01:42.1]} 28. h5 {[%clk 0:01:25.5]} 28... Kg7 {[%clk 0:01:40.1]} 29.
Kg3 {[%clk 0:01:18.2]} 29... Ne8 {[%clk 0:01:38.9]} 30. Rf2 {[%clk 0:01:17.9]}
30... f5 {[%clk 0:01:29.2]} 31. gxf5 {[%clk 0:01:11.8]} 31... Kf6 {[%clk
0:01:28.5]} 32. Bd1 {[%clk 0:01:12.3]} 32... Rxf5 {[%clk 0:01:24.9]} 33. Nb3
{[%clk 0:01:12.8]} 33... Rxf2 {[%clk 0:01:21.4]} 34. Kxf2 {[%clk 0:01:12.9]}
34... a4 {[%clk 0:01:19]} 35. Nd4 {[%clk 0:01:13.1]} 35... Ng7 {[%clk
0:01:19.8]} 36. Bg4 {[%clk 0:01:12.9]} 36... Ke7 {[%clk 0:01:18.3]} 37. Kg2
{[%clk 0:01:08.5]} 37... Rf6 {[%clk 0:01:18.2]} 38. Rd1 {[%clk 0:01:04.6]} 38...
Kd6 {[%clk 0:01:18.8]} 39. Rd2 {[%clk 0:01:03.4]} 39... Ke5 {[%clk 0:01:06.7]}
40. Rf2 {[%clk 0:01:03.3]} 40... Ne8 {[%clk 0:01:05]} 41. Rxf6 {[%clk
0:00:55.3]} 41... Nxf6 {[%clk 0:01:06.9]} 42. Kg3 {[%clk 0:00:51.5]} 42... Bf1
{[%clk 0:01:03]} 43. Bd1 {[%clk 0:00:47.6]} 43... Bc4 {[%clk 0:01:00.1]} 44.
Nc6+ {[%clk 0:00:46.8]} 44... Kd6 {[%clk 0:01:00.5]} 45. Nd4 {[%clk 0:00:47.5]}
45... Ke5 {[%clk 0:00:52.8]} 46. Nc6+ {[%clk 0:00:48.2]} 46... Ke6 {[%clk
0:00:54.2]} 47. Nd4+ {[%clk 0:00:49]} 47... Kf7 {[%clk 0:00:49.9]} 48. Nf5
{[%clk 0:00:44.2]} 48... Ng8 {[%clk 0:00:50.9]} 49. Bg4 {[%clk 0:00:44.2]} 49...
Kf6 {[%clk 0:00:52.1]} 50. Kf2 {[%clk 0:00:30.4]} 50... Bb3 {[%clk 0:00:45.3]}
51. Ke1 {[%clk 0:00:26.7]} 51... Ke5 {[%clk 0:00:43]} 52. Nd4 {[%clk 0:00:24.1]}
52... Nf6 {[%clk 0:00:37.9]} 53. Be2 {[%clk 0:00:24.5]} 53... Bc4 {[%clk
0:00:37.9]} 54. Bd1 {[%clk 0:00:21.8]} 54... Nd7 {[%clk 0:00:34.1]} 55. Bg4
{[%clk 0:00:17.5]} 55... Nc5 {[%clk 0:00:35.3]} 56. Nf5 {[%clk 0:00:18.2]} 56...
Nd3+ {[%clk 0:00:36.7]} 57. Kd2 {[%clk 0:00:18.3]} 57... Nf2 {[%clk 0:00:37.2]}
58. Nxh6 {[%clk 0:00:19]} 58... Kf6 {[%clk 0:00:34]} 59. Bd1 {[%clk 0:00:16.3]}
59... Nd3 {[%clk 0:00:31.4]} 60. Ng4+ {[%clk 0:00:16.3]} 60... Kf7 {[%clk
0:00:32.1]} 61. h6 {[%clk 0:00:16.3]} 61... Nxb2 {[%clk 0:00:32.5]} 62. Be2
{[%clk 0:00:16.4]} 62... Bxe2 {[%clk 0:00:32.9]} 63. Kxe2 {[%clk 0:00:16.9]}
63... Nc4 {[%clk 0:00:34.2]} 64. h7 {[%clk 0:00:16.3]} 64... Kg7 {[%clk
0:00:35.3]} 65. Nf6 {[%clk 0:00:17.3]} 65... Nxa3 {[%clk 0:00:36.2]} 66. Nxd5
{[%clk 0:00:17.7]} 66... Nc4 {[%clk 0:00:37.2]} 67. Nb4 {[%clk 0:00:17.6]} 67...
a3 {[%clk 0:00:38.6]} 68. Na2 {[%clk 0:00:18.2]} 68... Kxh7 {[%clk 0:00:39.8]}
69. Kf2 {[%clk 0:00:18.8]} 69... Kg6 {[%clk 0:00:41.2]} 0-1

[Event "*** Titled Tuesday 3|2 Blitz (Late)"]
[Site "Chess.com"]
[Date "2016.12.06"]
[Round "1"]
[White "Buffy7"]
[Black "1e41-0"]
[Result "0-1"]
[WhiteElo "2469"]
[BlackElo "2175"]
[TimeControl "180+2"]
[EndTime "17:10:20 PST"]
[Termination "1e41-0 won on time"]

1. d4 {[%clk 0:03:01.5]} 1... d5 {[%clk 0:03:00.1]} 2. Nf3 {[%clk 0:03:02.7]}
2... Nf6 {[%clk 0:02:59.7]} 3. c4 {[%clk 0:03:04.2]} 3... c6 {[%clk 0:02:59.6]}
4. Nc3 {[%clk 0:03:05.8]} 4... e6 {[%clk 0:03:00.6]} 5. Bg5 {[%clk 0:03:06.2]}
5... h6 {[%clk 0:03:00.1]} 6. Bxf6 {[%clk 0:03:06.3]} 6... Qxf6 {[%clk 0:03:02]}
7. e3 {[%clk 0:03:07.7]} 7... Nd7 {[%clk 0:03:00.3]} 8. Bd3 {[%clk 0:03:08.7]}
8... Bd6 {[%clk 0:02:52.4]} 9. O-O {[%clk 0:03:07.3]} 9... O-O {[%clk
0:02:52.3]} 10. e4 {[%clk 0:03:06.3]} 10... dxe4 {[%clk 0:02:53.2]} 11. Nxe4
{[%clk 0:03:06.8]} 11... Qe7 {[%clk 0:02:53.5]} 12. Re1 {[%clk 0:03:05.1]} 12...
Bc7 {[%clk 0:02:52.5]} 13. c5 {[%clk 0:02:52.9]} 13... Nf6 {[%clk 0:02:41.1]}
14. Nxf6+ {[%clk 0:02:47.5]} 14... Qxf6 {[%clk 0:02:43]} 15. Qe2 {[%clk
0:02:48.7]} 15... Rd8 {[%clk 0:02:40.9]} 16. Rad1 {[%clk 0:02:45.2]} 16... b6
{[%clk 0:02:34.1]} 17. Qe4 {[%clk 0:02:39.3]} 17... Bb7 {[%clk 0:02:12.8]} 18.
Ne5 {[%clk 0:02:39.3]} 18... bxc5 {[%clk 0:02:08.4]} 19. Nxc6 {[%clk 0:02:18.8]}
19... Bxc6 {[%clk 0:01:43.5]} 20. Qxc6 {[%clk 0:02:16.2]} 20... Rac8 {[%clk
0:01:16.1]} 21. Qb7 {[%clk 0:02:08.8]} 21... cxd4 {[%clk 0:01:13.5]} 22. Qxa7
{[%clk 0:02:02.3]} 22... e5 {[%clk 0:01:15]} 23. Rc1 {[%clk 0:01:59]} 23... Qb6
{[%clk 0:01:14.8]} 24. Qxb6 {[%clk 0:01:57.7]} 24... Bxb6 {[%clk 0:01:16.7]} 25.
g3 {[%clk 0:01:57.1]} 25... f6 {[%clk 0:01:12.7]} 26. b4 {[%clk 0:01:57.9]}
26... Rc3 {[%clk 0:01:10.6]} 27. Bc4+ {[%clk 0:01:50.2]} 27... Kf8 {[%clk
0:01:09.3]} 28. a4 {[%clk 0:01:38.3]} 28... Rc8 {[%clk 0:00:51.3]} 29. Rxc3
{[%clk 0:01:37.9]} 29... dxc3 {[%clk 0:00:53.2]} 30. Bb3 {[%clk 0:01:32.7]}
30... Rb8 {[%clk 0:00:44.2]} 31. Rc1 {[%clk 0:01:27.5]} 31... Bd4 {[%clk
0:00:44.6]} 32. b5 {[%clk 0:01:28.8]} 32... Ra8 {[%clk 0:00:45.2]} 33. Kf1
{[%clk 0:01:28.1]} 33... Ke7 {[%clk 0:00:45.6]} 34. Ke2 {[%clk 0:01:29.3]} 34...
Kd6 {[%clk 0:00:46.8]} 35. f3 {[%clk 0:01:28.3]} 35... Kc5 {[%clk 0:00:47.8]}
36. Kd3 {[%clk 0:01:29.7]} 36... Kb4 {[%clk 0:00:49]} 37. Kc2 {[%clk 0:01:31.1]}
37... g5 {[%clk 0:00:47.9]} 38. Re1 {[%clk 0:01:31.6]} 38... Kc5 {[%clk
0:00:47.2]} 39. Rd1 {[%clk 0:01:32.7]} 39... h5 {[%clk 0:00:47.4]} 40. g4 {[%clk
0:01:31.6]} 40... hxg4 {[%clk 0:00:47.1]} 41. fxg4 {[%clk 0:01:33.5]} 41... Rh8
{[%clk 0:00:47.3]} 42. Rh1 {[%clk 0:01:31.3]} 42... Kb6 {[%clk 0:00:48.6]} 43.
h3 {[%clk 0:01:31.9]} 43... Ka5 {[%clk 0:00:49]} 44. Rh2 {[%clk 0:01:26]} 44...
e4 {[%clk 0:00:48.8]} 45. Re2 {[%clk 0:01:24]} 45... Rxh3 {[%clk 0:00:45.3]} 46.
Rxe4 {[%clk 0:01:25.2]} 46... Be5 {[%clk 0:00:45.9]} 47. Rc4 {[%clk 0:01:20.7]}
47... Rh2+ {[%clk 0:00:46.7]} 48. Kc1 {[%clk 0:01:20.2]} 48... Rb2 {[%clk
0:00:48.3]} 49. Bc2 {[%clk 0:01:20.5]} 49... Rb4 {[%clk 0:00:46.6]} 50. Rc6
{[%clk 0:01:20.4]} 50... Rxg4 {[%clk 0:00:46.4]} 51. b6 {[%clk 0:01:08.7]} 51...
Bf4+ {[%clk 0:00:43.8]} 52. Kd1 {[%clk 0:01:04.5]} 52... Rg1+ {[%clk 0:00:44.4]}
53. Ke2 {[%clk 0:01:05.4]} 53... Rg2+ {[%clk 0:00:40.2]} 54. Kd3 {[%clk
0:01:06.5]} 54... Be5 {[%clk 0:00:40.9]} 55. Bb3 {[%clk 0:01:00]} 55... Rd2+
{[%clk 0:00:41.3]} 56. Ke4 {[%clk 0:00:59.6]} 56... Rd4+ {[%clk 0:00:41.8]} 57.
Ke3 {[%clk 0:00:58.1]} 57... Rb4 {[%clk 0:00:42.8]} 58. Bc2 {[%clk 0:00:51.6]}
58... Rxb6 {[%clk 0:00:43.7]} 59. Rc5+ {[%clk 0:00:52.9]} 59... Kb4 {[%clk
0:00:43.6]} 60. Rc8 {[%clk 0:00:52.5]} 60... Ka3 {[%clk 0:00:43.2]} 61. Bd3
{[%clk 0:00:52.5]} 61... Kb2 {[%clk 0:00:43.8]} 62. a5 {[%clk 0:00:53.8]} 62...
Rb4 {[%clk 0:00:43.4]} 63. a6 {[%clk 0:00:54.6]} 63... g4 {[%clk 0:00:44.8]} 64.
Ke2 {[%clk 0:00:52.9]} 64... Ra4 {[%clk 0:00:45.5]} 65. Rg8 {[%clk 0:00:46.9]}
65... g3 {[%clk 0:00:46.5]} 66. Rg6 {[%clk 0:00:45.8]} 66... c2 {[%clk
0:00:47.5]} 67. Bxc2 {[%clk 0:00:47.2]} 67... Kxc2 {[%clk 0:00:48.9]} 68. Rg4
{[%clk 0:00:48.5]} 68... Rxg4 {[%clk 0:00:48.8]} 0-1

[Event "*** Titled Tuesday 3|2 Blitz (Late)"]
[Site "Chess.com"]
[Date "2016.12.06"]
[Round "2"]
[White "FearlessKing64"]
[Black "silverback96"]
[Result "0-1"]
[WhiteElo "1999"]
[BlackElo "1975"]
[TimeControl "180+2"]
[EndTime "17:17:24 PST"]
[Termination "silverback96 won by resignation"]

1. e4 {[%clk 0:03:02]} 1... c5 {[%clk 0:02:59.2]} 2. Nf3 {[%clk 0:03:02.4]} 2...
Nc6 {[%clk 0:02:59.7]} 3. d4 {[%clk 0:03:03.4]} 3... cxd4 {[%clk 0:03:01.6]} 4.
Nxd4 {[%clk 0:03:04.9]} 4... Nf6 {[%clk 0:03:03.5]} 5. Nc3 {[%clk 0:03:06]} 5...
e5 {[%clk 0:03:05]} 6. Ndb5 {[%clk 0:03:05.6]} 6... d6 {[%clk 0:03:06.4]} 7. Bg5
{[%clk 0:03:05.3]} 7... a6 {[%clk 0:03:08]} 8. Na3 {[%clk 0:03:06.1]} 8... b5
{[%clk 0:03:09.9]} 9. Bxf6 {[%clk 0:03:07.3]} 9... gxf6 {[%clk 0:03:11.8]} 10.
Nd5 {[%clk 0:03:08.8]} 10... f5 {[%clk 0:03:13.4]} 11. c3 {[%clk 0:03:08.5]}
11... Bg7 {[%clk 0:03:14.6]} 12. exf5 {[%clk 0:03:07.9]} 12... Bxf5 {[%clk
0:03:15]} 13. Nc2 {[%clk 0:03:09.4]} 13... O-O {[%clk 0:03:15.4]} 14. Nce3
{[%clk 0:03:10.6]} 14... Be6 {[%clk 0:03:16.9]} 15. Bd3 {[%clk 0:03:11.3]} 15...
f5 {[%clk 0:03:17.6]} 16. O-O {[%clk 0:03:12.8]} 16... e4 {[%clk 0:03:16.7]} 17.
Nf4 {[%clk 0:03:10.1]} 17... Bf7 {[%clk 0:03:13.9]} 18. Bc2 {[%clk 0:03:05.9]}
18... Qg5 {[%clk 0:03:14.7]} 19. g3 {[%clk 0:02:59.7]} 19... Ne5 {[%clk
0:03:05.2]} 20. Bb3 {[%clk 0:02:24.8]} 20... Nf3+ {[%clk 0:03:03.8]} 21. Kg2
{[%clk 0:02:25.6]} 21... Bxb3 {[%clk 0:02:57]} 22. Qxb3+ {[%clk 0:02:21.2]}
22... Kh8 {[%clk 0:02:58]} 23. Rad1 {[%clk 0:02:14.9]} 23... Be5 {[%clk
0:02:58.4]} 24. Ned5 {[%clk 0:01:52.1]} 24... Qh6 {[%clk 0:02:49]} 25. Rh1
{[%clk 0:01:44.2]} 25... Rg8 {[%clk 0:02:49]} 26. a4 {[%clk 0:01:18.7]} 26...
Bxf4 {[%clk 0:02:48.6]} 27. Nxf4 {[%clk 0:01:17.1]} 27... Qxf4 {[%clk
0:02:48.4]} 28. axb5 {[%clk 0:01:06.2]} 28... Nh4+ {[%clk 0:02:48.9]} 29. Kf1
{[%clk 0:01:00.2]} 29... Qf3 {[%clk 0:02:50.8]} 30. Rg1 {[%clk 0:00:58.6]} 30...
e3 {[%clk 0:02:52.3]} 31. Qc2 {[%clk 0:00:54.5]} 31... exf2 {[%clk 0:02:52.9]}
32. Qxf2 {[%clk 0:00:55.3]} 32... Qxd1+ {[%clk 0:02:53.9]} 0-1